Cogmind - Beta 13 @@@ ROGUE MODE // 2024.05.15 @ 00:09:57 Player: SohrinSohtel Result: Destroyed by G-34 Mercenary with Small Laser Performance ------------- Evolutions (0) 0 Regions Visited (1) 200 Robots Destroyed (7) 35 Value Destroyed (148) 148 Prototype IDs (0) 0 Alien Tech Used (0) 0 Bonus (0) 0 TOTAL SCORE: 383 Bonus ------- None Cogmind --------- Core Integrity 0/250 Matter 300/300 Energy 100/100 System Corruption 0% Temperature Cool (6) Movement Walking (120) Location -10/Materials Parts ------- > --- POWER (1) -------- (None) > --- PROPULSION (2) --- Aluminum Leg > --- UTILITY (2) ------ Visual Processing Unit > --- WEAPON (2) ------- (None) > --- INVENTORY (5) ---- Aluminum Leg Wheel Wheel Peak State ------------ > --- POWER ------------ Light Ion Engine > --- PROPULSION ------- Wheel Wheel > --- UTILITY ---------- Heat Sink Visual Processing Unit > --- WEAPON ----------- Small Laser Light Assault Rifle > --- INVENTORY -------- Aluminum Leg Aluminum Leg Aluminum Leg Aluminum Leg Medium Laser [Rating: 8] Favorites ----------- Power Light Ion Engine Engine Light Ion Engine Propulsion Aluminum Leg Leg Aluminum Leg Wheel Wheel Utility Visual Processing Unit Device Heat Sink Processor Visual Processing Unit Weapon Light Assault Rifle Energy Gun Medium Laser Ballistic Gun Light Assault Rifle Build | -11 -10 ------- Run | Yrd Mat Slots Evolved . | . . Power . | . . Propulsion . | . . Utility . | . . Weapon . | . . Parts Attached 16 | 6 10 Power 2 | 1 1 Engine 2 | 1 1 Core . | . . Reactor . | . . Propulsion 7 | 2 5 Treads . | . . Leg 4 | . 4 Wheel 3 | 2 1 Hover . | . . Flight . | . . Utility 2 | 1 1 Device 1 | 1 . Storage . | . . Processor 1 | . 1 Hackware . | . . Protection . | . . Artifact . | . . Weapon 5 | 2 3 Energy Gun 3 | 1 2 Energy Cannon . | . . Ballistic Gun 2 | 1 1 Ballistic Cannon . | . . Launcher . | . . Special Weapon . | . . Impact Weapon . | . . Slashing Weapon . | . . Piercing Weapon . | . . Special Melee Weapon . | . . Unidentified Prototypes . | . . Parts Lost 7 | . 7 Power 2 | . 2 Propulsion 2 | . 2 Utility 1 | . 1 Weapon 2 | . 2 Highest Loss Streak 3 | . 3 To Critical Strikes . | . . Average Slot Usage (%) 81 | . 81 Engine 11 | . 11 Leg 19 | . 19 Wheel 8 | . 8 Device 6 | . 6 Processor 12 | . 12 Energy Gun 11 | . 11 Ballistic Gun 12 | . 12 Naked Turns . | . . Heaviest Build 7 | 6 7 Greatest Support 20 | 20 20 Greatest Overweight (x) . | . . Average Overweight (x) . | . . Largest Inventory Capacity 5 | 5 5 Average Capacity 5 | 5 5 Most Carried 5 | 5 5 Average Carried 3 | 2 4 Final Capacity 5 | 5 5 Final Carried 5 | 5 3 Class Distribution -------------------- 85% | Mutant 14% | Scavenger-Mutant Dominant Class ---------------- Mutant | -10/Materials Resources | -11 -10 ----------- Run | Yrd Mat Matter Collected 371 | 263 108 Remotely . | . . Salvage Created 184 | 40 144 Parts 15 | 3 12 Haulers Intercepted . | . . Recyclers Shooed . | . . Parts Field Recycled . | . . Retrieved Matter . | . . Parts Self-Destructed . | . . Prevented . | . . Kills | -11 -10 ------- Run | Yrd Mat Combat Hostiles Destroyed 6 | 1 5 Guns 6 | 1 5 Classes Destroyed 3 | 1 2 Watcher 1 | . 1 Swarmer 3 | . 3 Grunt 3 | 1 2 Best Kill Streak 4 | 1 4 Combat Bots Only 4 | 1 4 Max Kills in Single Turn 1 | 1 1 Gunslinging . | . . Exploded . | . . Melee . | . . Uniques/NPCs Destroyed . | . . Combat | -11 -10 -------- Run | Yrd Mat Hostile Shots Fired 109 | 3 106 Missed 32 | . 32 Damage Taken 964 | 32 932 Core 253 | . 253 Absorbed by Shields . | . . Core Remaining (%) 100 | 100 . Volleys Fired 39 | 3 36 Largest 2 | 2 2 Hottest 70 | 60 70 Shots Fired 72 | 6 66 Gun 72 | 6 66 Cannon . | . . Launcher . | . . Special . | . . Kinetic 38 | 3 35 Thermal 34 | 3 31 Explosive . | . . Electromagnetic . | . . Robot Hit Streak 5 | 2 5 Robot Miss Streak 6 | 2 6 Penetration Max . | . . Secondary Targets 1 | . 1 Max Gunslinging Chain 1 | . 1 Shots Hit Robots 36 | 3 33 Core Hits 27 | 2 25 Critical Kills . | . . Critical Parts Destroyed . | . . Critical Strikes 1 | . 1 Burn 1 | . 1 Melee Attacks . | . . Impact . | . . Slashing . | . . Piercing . | . . Sneak Attacks . | . . Combat Hostiles . | . . Follow-up Attacks . | . . Damage Inflicted 428 | 30 398 Guns 401 | 30 371 Cannons . | . . Explosions . | . . Melee . | . . Ramming 27 | . 27 Kinetic 190 | 10 180 Thermal 211 | 20 191 Explosive . | . . Electromagnetic . | . . Impact . | . . Slashing . | . . Piercing . | . . Highest Corruption . | . . Average Corruption . | . . Corruption Purged . | . . Corruption Blocked . | . . Overload Shots . | . . Overflow Damage . | . . Projectiles . | . . Explosions . | . . Melee . | . . Knockbacks . | . . Impact . | . . Kinetic . | . . Secondary . | . . Self-Inflicted Damage 2 | . 2 Shots . | . . Rammed 1 | . 1 Targets Rammed 24 | . 24 Kicked 23 | . 23 Crushed . | . . Highest Temperature 82 | 58 82 Average Temperature 26 | 38 25 Received Heat Transfer 567 | 18 549 Siege Activations . | . . Robots Corrupted . | . . Combat Hostiles . | . . Parts Fried . | . . Impact Corruptions . | . . Robots Melted . | . . Combat Hostiles . | . . Parts Melted 1 | . 1 Heat Transferred 668 | 50 618 Parts Sabotaged . | . . Parts Stolen . | . . Parts Stripped . | . . Power Chain Reactions . | . . Alert | -11 -10 ------- Run | Yrd Mat Peak Influence 185 | 20 185 Initial 13 | . 13 Average 89 | 3 122 Maximum Alert Level . | . . Low Security (%) 100 | 100 100 Level 1 . | . . Level 2 . | . . Level 3 . | . . Level 4 . | . . Level 5 . | . . High Security . | . . Max Security . | . . Squads Dispatched 2 | . 2 Investigation . | . . Extermination . | . . Reinforcement 2 | . 2 Assault . | . . Garrison . | . . Intercept . | . . Searches Triggered . | . . Construction Impeded . | . . Haulers Reinforced . | . . Active Scanning Responses . | . . Cargo Convoy Interrupts . | . . Stealth | -11 -10 --------- Run | Yrd Mat Distress Signals . | . . Communications Jammed . | . . Distress Signals . | . . Times Spotted 13 | 1 12 Peak Tracking Total 4 | 1 4 Tactical Retreats 1 | . 1 Traps | -11 -10 ------- Run | Yrd Mat Traps Triggered . | . . Indirectly . | . . Trap Hack Attempts . | . . Triggered . | . . Disarmed . | . . Reprogrammed . | . . Reused . | . . Traps Extracted . | . . Installed . | . . Triggered . | . . Machines | -11 -10 ---------- Run | Yrd Mat Machines Disabled . | . . Max in Single Turn . | . . Machines Repaired . | . . Machines Dismantled . | . . Machines Sabotaged . | . . Overloaded Fab Kills . | . . Hacking | -11 -10 --------- Run | Yrd Mat Machines Accessed . | . . Terminals . | . . Fabricators . | . . Repair Stations . | . . Recycling Units . | . . Scanalyzers . | . . Garrison Access . | . . Total Hacks . | . . Successful . | . . Failed . | . . Catastrophic . | . . Database Lockouts . | . . Manual . | . . Terminals . | . . Fabricators . | . . Repair Stations . | . . Recycling Units . | . . Scanalyzers . | . . Garrison Access . | . . Terminal Hacks . | . . Fabricator Hacks . | . . Repair Station Hacks . | . . Recycling Unit Hacks . | . . Scanalyzer . | . . Garrison Access Hacks . | . . Unauthorized Hacks . | . . Terminals . | . . Fabricators . | . . Repair Stations . | . . Recycling Units . | . . Scanalyzers . | . . Garrison Access . | . . Data Cores Recovered . | . . Used . | . . Hacking Detections . | . . Full Trace Events . | . . Feedback Events . | . . Feedback Blocked . | . . Robot Schematics Acquired . | . . Robots Built . | . . Authchips . | . . Time . | . . Total Robot Build Rating . | . . Part Schematics Acquired . | . . Parts Built . | . . Authchips . | . . Time . | . . Total Part Build Rating . | . . Parts Repaired . | . . Time . | . . Parts Recycled . | . . Recycled Matter . | . . Retrieved Matter . | . . Retrieved Components . | . . Parts Scanalyzed . | . . Part Schematics Acquired . | . . Parts Damaged . | . . Bothacking | -11 -10 ------------ Run | Yrd Mat Used RIF Installer . | . . Robots Hacked . | . . Non-combat . | . . Combat . | . . Robot Hacks Applied . | . . Relay Couplers Released . | . . Fabnet Peak Effective % . | . . Robots Rewired . | . . Allies Hacked . | . . Hacks Repelled . | . . Allies | -11 -10 -------- Run | Yrd Mat Total Allies . | . . Largest Group . | . . Highest-Rated Group . | . . Highest-Rated Ally . | . . Total Orders . | . . Ally Attacks . | . . Total Damage . | . . Kills . | . . Allies Corrupted . | . . Allies Melted . | . . Intel | -11 -10 ------- Run | Yrd Mat Robot Analysis Total . | . . Derelict Logs Recovered . | . . Drone Launches . | . . Drone Recoveries . | . . Exploration | -11 -10 ------------- Run | Yrd Mat Turns Passed 391 | 109 282 Spaces Moved 227 | 90 137 Core 16 | 16 . Treads . | . . Legs 59 | . 59 Wheels 152 | 74 78 Hover . | . . Flight . | . . Fastest Speed 50 | 50 80 Average Speed 88 | 74 97 Slowest Speed 120 | 80 120 Overloaded Moves . | . . Propulsion Burnouts . | . . Robots Hopped . | . . Cave-ins Triggered . | . . Exploration Rate (%) 14 | 7 22 Regions Visited 1 Branch Regions . Pre-discovered Areas . | . . Known Exits Taken . | . . Unknown Exits Taken 1 | 1 . Scrap Searched . | . . Spaces Dug . | . . Terrain Destroyed . | . . Melee . | . . Projectile . | . . AOE . | . . Terrain Rammed . | . . Walls Destroyed . | . . Machines Disabled . | . . Actions | -11 -10 --------- Run | Yrd Mat Total 342 | 123 219 Wait 28 | 19 9 Move 226 | 89 137 Hop . | . . Pick Up 7 | 6 1 Fast Attach 7 | 5 2 Attach 3 | 1 2 Detach . | . . Swap 6 | . 6 Drop 2 | . 2 Fire 39 | 3 36 Melee . | . . Ram 1 | . 1 Kick 23 | . 23 Crush . | . . Escape Stasis . | . . Rewire . | . . Trap . | . . Miscellaneous . | . . Route ------- -11/Scrapyard -10/Materials History --------- Turn | Location | Event 2 | -11/Scrapyard | Met Revision 17 80 | -11/Scrapyard | Discovered new exit (range 8) 110 | -11/Scrapyard | Entered Materials 304 | -10/Materials | Lost 3 parts (1p1n1u) 322 | -10/Materials | Core integrity fell below 50% 377 | -10/Materials | Core integrity fell below 20% 392 | -10/Materials | Destroyed by G-34 Mercenary with Small Laser Last Messages --------------- 00377_ K-01 Serf cleans the Pressure Siphon. 00377_ K-01 Serf collects debris. 00378_ Kicked G-47 Trooper. 00379_ Kicked G-47 Trooper out of the way. 00380_ Kicked G-47 Trooper. 00382_ K-01 Serf collects debris. 00382_ M-13 Machinist repairs G-34 Mercenary. 00382_ Lgt. Ion Engine destroyed. 00383_ Kicked G-47 Trooper. 00383_ K-01 Serf cleans the Pressure Siphon. 00384_ Kicked G-47 Trooper out of the way. 00385_ K-01 Serf collects debris. 00385_ Kicked G-47 Trooper out of the way. 00386_ Kicked G-47 Trooper. 00389_ K-01 Serf collects debris. 00389_ Kicked G-47 Trooper out of the way. 00390_ Aluminum Leg destroyed. 00391_ Kicked G-47 Trooper. 00392_ K-01 Serf cleans the Terminal. [Achievement: First Step to Greatness] Map ----- +----------------------------------------------------+ | ?????????????????????????????????????????????????? | | ?????????????????????????????????????????????????? | | ?????????????????????????????????????????????????? | | ?????????????????????????????????????????????????? | | ???????????????????? ??????????????????????????? | | ????????????######## #?????????????????????????? | | ????????????# #?????????????????????????? | | ????????????# +?????????????????????????? | | ????????????# #?????????????????????????? | | ????????????# ** #?????????????????????????? | | ????????????# ** #?????????????????????????? | | ????????????# #?????????????????????????? | | ????????????# #?????##########??????????? | | ????????????# #????? ???????????? | | ????????????# #????? #????????????? | | ????????????# ###### #????????????? | | ????????????# t #????????????? | | ????????????# #????????????? | | ????????????# #????????????? | | ????????????+ #????????????? | | ????????????#= k #????????????? | | ????????????#%[ ru #????????????? | | ???????????## %""""u """" """" ""#????????????? | | ???????????# """" """" """" T"#????????????? | | ???????????# """" """"% """" k""###??????????? | | ?????????? +^ g@%%%%% + ???? | | ???????????# mg%%% ###??????????? | | ???????????# ###+########## #????????????? | | ???????????### ###?????????????# #????????????? | | ?????????????# #???????????????? #????????????? | | ?????????????# #????????????????? #????????????? | | ?????????#####/##????????????????? #????????????? | | ?????????# #?????????????????? ???????????? | | ?????????# [ #??????????????????? ??????????? | | ?????????# """ #???????????????????? ?????????? | | ?????????# """ #????????????????????###+????????? | | ?????????# """ #????????????????????????????????? | | ?????????# #######??????????????????????????? | | ?????????###/#+## #??????????????????????????? | | ???????????# #??????????????????????????? | | ???????????# #??????????????????????????? | | ???????????# = #??????????????????????????? | | ???????#######+## #??????????????????????????? | | ???????# ## ##??????????????????????????? | | ???????# ## #???????????????????????????? | | ???????# ## #???????????????????????????? | | ???????# ## #???????????????????????????? | | ???????###+####### #???????????????????????????? | | ?????????# #???????????????????????????? | | ?????????# #???????????????????????????? | +----------------------------------------------------+ Best States ------------- Heat Dissipation 35 Energy Generation 10 Energy Capacity 125 Matter Stores 300 Matter Capacity 300 Sight Range 18 Terrain Scan Density 10 Evasion (%) 55 Item Schematics ----------------- None Robot Schematics ------------------ None Fabricated ------------ Nothing Alien Tech Used ----------------- None Achievements -------------- First Step to Greatness Storm Trooper Uninvited Guest Challenges ------------ None Game ------ Seed ActuatorMicroMapper Manual? 0 Play Time 00:48:48 Cumulative 0.7 hours Start 2024.05.14 @ 23:13:25 End 2024.05.15 @ 00:09:57 Sessions 1 Manual Loads 0 Difficulty Rogue Special Mode None Game No. 1 Rogue 1 Adventurer 0 Explorer 0 Win Type - Total 0 Types 0/0/0/0/0/0/0/0/0 Lore% 0 Gallery% 0 Achievement% 1 Wizard Run 0 Options --------- Layout 1 ASCII 0 Keyboard 0 Movement Mouse Keybinds 0 Fullscreen 1 Font 16/SmallcapsGlow Map View 55x38 Zoom Use 3% Tactical HUD 1 Map Filters NONE Filters NONE Steam 1 RUN: 9607704f-0ed6-4c64-bbf8-3b198dc844ff